bitfinex/quotes_SOLUSD_20250908
["timestamp","ask_amount","ask_price","bid_price","bid_amount"]
[1757328877451,41.72249621,215.16,215.15,0.03]
[1757328878056,39.26,215.16,215.15,0.03]
[1757328878382,47.08020024,215.16,215.15,0.03]
[1757328878680,46.37020024,215.16,215.15,0.03]
[1757328878885,7.11020024,215.16,215.15,0.03]
[1757328879073,41.72249621,215.16,215.15,0.03]
[1757328879261,2.46249621,215.16,215.15,0.03]
[1757328879463,13.59559401,215.2,215.15,0.03]
[1757328879464,0.77,215.25,215.15,0.69]
[1757328879769,52.85559401,215.24,215.15,0.69]
[1757328879968,2.46249621,215.16,215.15,0.03]
[1757328880155,41.72249621,215.16,215.15,0.03]
[1757328880555,2.46249621,215.16,215.15,0.03]
[1757328881059,39.26,215.16,215.15,0.03]
[1757328881259,41.72249621,215.16,215.15,0.03]
[1757328881666,2.46249621,215.16,215.15,0.03]
[1757328881866,13.59559401,215.2,215.15,0.69]
[1757328882066,2.46249621,215.16,215.15,0.03]
[1757328882460,7.11020024,215.16,215.15,0.03]
[1757328882661,7.82020024,215.16,215.15,0.03]
[1757328883058,17.67018508,215.16,215.15,0.03]
[1757328884166,2.46249621,215.16,215.15,0.03]
[1757328884362,0.71,215.22,215.15,0.03]
[1757328884560,9.57269645,215.16,215.15,0.03]
[1757328884761,48.83269645,215.16,215.15,0.03]
[1757328885082,49.54269645,215.16,215.15,0.03]
[1757328885883,63.13829046,215.16,215.15,0.03]
[1757328886575,70.52577909,215.16,215.11,0.2]
[1757328886783,2.46249621,215.12,215.11,0.2]
[1757328886957,41.72249621,215.12,215.11,0.2]
[1757328887160,0.71,215.15,215.11,0.2]
[1757328887496,29.86255812,215.16,215.11,0.2]
[1757328887497,2.46249621,215.12,215.11,0.2]
[1757328888480,7.11106445,215.12,215.11,0.2]
[1757328888682,41.72249621,215.12,215.11,0.2]
[1757328889077,39.26,215.12,215.11,0.86]
[1757328889401,39.26,215.12,215.11,0.2]
[1757328889962,2.46249621,215.12,215.11,0.2]
[1757328890165,56.02809022,215.12,215.11,0.2]
[1757328890386,39.26,215.12,215.11,0.2]
[1757328890588,41.72249621,215.12,215.11,0.2]
[1757328890896,39.26,215.12,215.11,0.86]
[1757328891197,39.26,215.12,215.11,0.2]
[1757328892882,2.46249621,215.15,215.11,0.86]
[1757328893083,41.72249621,215.14,215.11,0.2]
[1757328893302,2.46249621,215.12,215.11,0.2]
[1757328893490,41.72249621,215.12,215.11,0.2]
[1757328893678,39.26,215.12,215.11,0.2]
[1757328893988,41.72249621,215.12,215.11,0.2]
[1757328894168,39.26,215.12,215.11,0.2]
[1757328895786,39.26,215.12,215.11,0.86]
[1757328895993,39.26,215.12,215.11,0.2]
[1757328897100,39.26,215.12,215.11,0.86]
[1757328897280,16.05809022,215.16,215.11,0.86]
[1757328897486,0.06,215.25,215.14,26.0]
[1757328897672,0.06,215.25,215.19,26.0]
[1757328898064,0.06,215.25,215.2,0.66]
[1757328898295,2.46249621,215.23,215.19,26.0]
[1757328898473,41.72249621,215.22,215.19,26.0]
[1757328899385,41.72249621,215.22,215.16,0.66]
[1757328899889,39.26,215.22,215.16,0.66]
[1757328900100,41.72249621,215.22,215.16,0.66]
[1757328900395,2.46249621,215.2,215.16,26.0]
[1757328900692,39.26,215.22,215.16,26.0]
[1757328900880,7.10912043,215.21,215.16,26.0]
[1757328901080,7.81912043,215.21,215.16,26.0]
[1757328901393,0.06,215.25,215.17,29.23132182]
[1757328901572,0.06,215.25,215.18,3.23132182]
[1757328901773,0.06,215.25,215.21,26.0]
[1757328902093,0.06,215.28,215.22,26.0]
[1757328902279,0.06,215.3,215.26,26.0]
[1757328902589,0.06,215.3,215.27,2.56771616]
[1757328902788,0.06,215.3,215.27,3.22771616]
[1757328902996,0.06,215.3,215.23,26.0]
[1757328903183,0.06,215.3,215.24,0.66]
[1757328903384,0.06,215.3,215.24,3.22776679]
[1757328903585,0.06,215.3,215.25,26.66]
[1757328903768,0.06,215.3,215.26,4.64554492]
[1757328903972,0.06,215.3,215.26,5.30554492]
[1757328904286,0.06,215.3,215.27,0.66]
[1757328904892,0.06,215.3,215.27,26.0]
[1757328905194,0.06,215.3,215.28,0.66]
[1757328905686,0.06,215.3,215.29,0.69]
[1757328905883,0.06,215.3,215.29,5.33489758]
[1757328906281,0.06,215.3,215.29,0.69]
[1757328906483,0.06,215.3,215.22,15.6098262]
[1757328906484,0.06,215.3,215.26,0.69]
[1757328906781,0.06,215.3,215.29,26.0]
[1757328906995,0.06,215.3,215.29,26.69]
[1757328907302,0.1,215.47,215.33,26.0]
[1757328907479,0.1,215.47,215.37,26.0]
[1757328907787,0.1,215.47,215.38,2.56351718]
[1757328908002,0.1,215.47,215.42,26.0]
[1757328908380,0.1,215.47,215.42,26.69]
[1757328908590,0.1,215.47,215.43,0.69]
[1757328908799,0.1,215.47,215.42,26.0]
[1757328909097,0.1,215.47,215.43,0.69]
[1757328909291,0.1,215.47,215.44,0.69]
[1757328910104,0.1,215.47,215.46,26.0]
[1757328910779,0.1,215.47,215.43,0.69]
[1757328911181,0.1,215.47,215.39,0.69]
[1757328911817,0.1,215.47,215.41,26.0]
[1757328911982,0.1,215.47,215.45,26.0]
[1757328912601,0.1,215.47,215.46,0.69]
[1757328913396,0.1,215.47,215.46,4.5446282]
[1757328913598,0.1,215.47,215.46,0.69]
[1757328913987,0.1,215.47,215.46,5.33123271]
[1757328916395,0.1,215.47,215.46,31.33123271]
[1757328916698,0.1,215.47,215.33,20.0]
[1757328916910,0.1,215.47,215.4,0.69]
[1757328917891,0.1,215.47,215.34,16.25336676]
[1757328917892,8.91167482,215.45,215.37,0.69]
[1757328918221,8.91167482,215.44,215.34,0.69]
[1757328918592,8.91167482,215.44,215.36,26.0]
[1757328919198,0.71,215.45,215.37,0.69]
[1757328919403,0.1,215.47,215.37,0.69]
[1757328920307,0.1,215.47,215.38,26.0]
[1757328920608,0.1,215.47,215.39,0.69]
[1757328921588,0.1,215.47,215.4,26.0]
[1757328921789,9.01167482,215.47,215.39,0.69]
[1757328921989,8.91167482,215.45,215.37,4.64311761]
[1757328922300,8.91167482,215.43,215.36,0.69]
[1757328922614,8.91167482,215.43,215.36,26.69]
[1757328922910,8.91167482,215.4,215.32,0.69]
[1757328923089,4.64153182,215.45,215.25,7.17629837]
[1757328923090,8.91167482,215.38,215.25,7.17629837]
[1757328923285,9.62167482,215.37,215.26,0.69]
[1757328923517,8.91167482,215.36,215.26,0.69]
[1757328924118,0.71,215.35,215.28,26.0]
[1757328924304,9.62167482,215.34,215.22,0.69]
[1757328924511,8.91167482,215.32,215.22,0.69]
[1757328924819,8.91167482,215.32,215.23,26.0]
[1757328925308,8.91167482,215.26,215.19,4.64705608]
[1757328925518,9.62167482,215.26,215.19,4.64705608]
[1757328925812,9.62167482,215.26,215.21,26.0]
[1757328926105,0.71,215.25,215.21,26.0]
[1757328926311,0.71,215.25,215.16,0.03]
[1757328926312,8.91167482,215.29,215.22,4.64640832]
[1757328926493,8.91167482,215.28,215.22,4.64640832]
[1757328926694,9.62167482,215.3,215.22,30.64640832]
[1757328926889,8.91167482,215.33,215.23,0.69]
[1757328927196,8.91167482,215.35,215.25,26.0]
[1757328927395,0.71,215.32,215.25,26.0]
[1757328927590,0.71,215.32,215.23,0.69]
[1757328928510,8.91167482,215.29,215.21,26.0]
[1757328928708,0.71,215.28,215.21,26.0]
[1757328929207,13.59559401,215.39,215.18,11.61768213]
[1757328929208,13.59559401,215.4,215.25,26.0]
[1757328929412,57.24526917,215.47,215.25,26.0]
[1757328929413,0.71,215.44,215.33,26.0]
[1757328929591,0.71,215.44,215.34,0.69]
[1757328930409,0.81,215.47,215.34,0.69]
[1757328930610,0.81,215.47,215.38,26.0]
[1757328930806,0.81,215.47,215.38,26.69]
[1757328930807,0.1,215.47,215.38,26.69]
[1757328931019,0.81,215.47,215.38,26.69]
[1757328931198,8.91167482,215.46,215.38,26.0]
[1757328931398,9.62167482,215.45,215.37,26.0]
[1757328931705,0.71,215.45,215.37,26.0]
[1757328931907,0.71,215.45,215.38,26.0]
[1757328932698,0.71,215.45,215.39,30.64274107]
[1757328932898,0.71,215.45,215.39,26.0]
[1757328933910,0.71,215.45,215.39,30.64258323]
[1757328934110,0.1,215.47,215.39,4.64258323]
[1757328935025,13.65271798,215.47,215.39,4.64258323]
[1757328935518,9.01167482,215.47,215.39,4.64258323]
[1757328936223,9.67167482,215.47,215.39,4.64258323]
[1757328936823,14.3127369,215.47,215.39,4.64258323]
[1757328937023,8.91167482,215.44,215.34,0.76]
[1757328937210,8.91167482,215.44,215.34,3.30699367]
[1757328937519,0.66,215.43,215.34,3.30699367]
[1757328937698,0.66,215.43,215.34,7.85080346]
[1757328937903,8.91167482,215.41,215.34,4.64380979]
[1757328938108,0.66,215.42,215.35,26.0]
[1757328939022,9.57167482,215.42,215.35,26.0]
[1757328939223,0.66,215.41,215.32,4.64425041]
[1757328939413,0.66,215.4,215.33,2.55153501]
[1757328939810,39.84,215.44,215.35,26.0]
[1757328940011,0.66,215.44,215.36,2.55051693]
[1757328940513,0.66,215.44,215.39,26.0]
[1757328940902,0.66,215.44,215.37,4.64317221]
[1757328940903,0.66,215.44,215.38,26.0]
[1757328941868,0.1,215.47,215.4,26.0]
[1757328942010,0.1,215.47,215.41,2.55615192]
[1757328942209,0.1,215.47,215.42,2.55615192]
[1757328942516,0.1,215.47,215.4,26.0]
[1757328942517,0.1,215.47,215.45,26.0]
[1757328942718,8.91167482,215.46,215.37,0.66]
[1757328942921,8.91167482,215.46,215.38,2.55892049]
[1757328943125,8.91167482,215.46,215.4,26.0]
[1757328943323,14.31276274,215.47,215.4,26.0]
[1757328944222,8.91167482,215.44,215.33,0.66]
[1757328944424,8.91167482,215.44,215.34,3.22244979]
[1757328944623,8.91167482,215.44,215.35,2.56244979]
[1757328944929,8.91167482,215.43,215.36,2.56244979]
[1757328945128,9.57167482,215.42,215.37,2.56244979]
[1757328945432,0.66,215.41,215.32,26.0]
[1757328945649,0.66,215.41,215.33,2.56368151]
[1757328945855,8.91167482,215.42,215.34,2.56368151]
[1757328946047,8.91167482,215.43,215.35,2.56368151]
[1757328946246,8.91167482,215.43,215.34,0.66]
[1757328946247,8.91167482,215.43,215.39,26.0]
[1757328946451,9.57167482,215.43,215.36,4.64329241]
[1757328946750,8.91167482,215.4,215.38,26.0]
[1757328947144,8.91167482,215.4,215.37,26.0]
[1757328947345,8.91167482,215.4,215.38,2.56446426]
[1757328947558,5.30188319,215.43,215.38,2.56446426]
[1757328947852,0.66,215.42,215.39,26.0]
[1757328948054,8.91167482,215.4,215.39,26.0]
[1757328948549,8.91167482,215.4,215.37,26.0]
[1757328948751,8.91167482,215.4,215.38,2.56436999]
[1757328949130,8.91167482,215.4,215.38,28.56436999]
[1757328949342,8.91167482,215.4,215.38,26.0]
[1757328949643,9.57167482,215.4,215.38,26.0]
[1757328950028,9.57167482,215.4,215.35,4.64339495]
[1757328950029,8.91167482,215.4,215.35,26.0]
[1757328950230,8.91167482,215.4,215.36,2.56639644]
[1757328950429,8.91167482,215.4,215.37,2.56639644]
[1757328950644,8.91167482,215.4,215.38,2.56639644]
[1757328950957,8.91167482,215.4,215.35,26.0]
[1757328951148,8.91167482,215.4,215.39,26.0]
[1757328951651,8.91167482,215.4,215.35,26.0]
[1757328951950,8.91167482,215.4,215.37,26.0]
[1757328952625,8.91167482,215.4,215.34,4.64380302]
[1757328952626,9.57167482,215.4,215.35,26.0]
[1757328952827,0.66,215.4,215.36,2.56747605]
[1757328953333,5.30218842,215.42,215.36,2.56747605]
[1757328953628,8.91167482,215.41,215.34,4.64381907]
[1757328953836,0.66,215.42,215.37,26.0]
[1757328954040,8.91167482,215.41,215.37,26.0]
[1757328954557,0.66,215.42,215.37,26.0]
[1757328954749,8.91167482,215.41,215.37,26.0]
[1757328954949,8.91167482,215.4,215.37,26.0]
[1757328955267,0.66,215.41,215.37,26.0]
[1757328955434,8.91167482,215.41,215.37,30.64312601]
[1757328955835,0.66,215.4,215.31,4.64446611]
[1757328956046,8.91167482,215.38,215.34,26.0]
[1757328956250,0.66,215.4,215.34,26.0]
[1757328956436,0.66,215.43,215.34,26.66]
[1757328956744,4.74123083,215.47,215.3,0.03]
[1757328956745,8.91167482,215.36,215.32,26.0]
[1757328957058,8.92864907,215.37,215.34,26.0]
[1757328957256,9.58864907,215.39,215.34,26.0]
[1757328957443,0.66,215.38,215.34,26.0]
[1757328957634,0.66,215.38,215.33,8.92864907]
[1757328958272,0.66,215.38,215.34,4.64381907]
[1757328958851,8.92864907,215.35,215.3,0.03]
[1757328959156,8.92864907,215.31,215.3,0.03]
[1757328959662,39.82,215.31,215.3,0.03]
[1757328959965,39.16,215.33,215.3,0.03]
[1757328960650,8.92864907,215.31,215.3,0.03]
[1757328960863,9.58864907,215.32,215.3,0.03]
[1757328961061,9.58864907,215.31,215.3,0.03]
[1757328961845,23.18424308,215.31,215.3,0.03]
[1757328962264,27.82870919,215.31,215.3,0.03]
[1757328962635,53.39311518,215.31,215.3,0.03]
[1757328963860,48.74864907,215.31,215.3,0.03]
[1757328964061,61.68424308,215.31,215.3,0.03]
[1757328964252,62.34424308,215.31,215.3,0.03]
[1757328965467,0.68,215.41,215.3,9.66864907]
[1757328965651,39.84,215.44,215.36,8.92864907]
[1757328965850,48.76864907,215.44,215.38,8.92864907]
[1757328966066,8.92864907,215.43,215.37,8.92864907]
[1757328966563,8.92864907,215.42,215.36,0.71]
[1757328966949,8.92864907,215.38,215.33,0.71]
[1757328967551,0.68,215.41,215.36,26.0]
[1757328967758,8.92864907,215.42,215.37,0.71]
[1757328968355,8.92864907,215.45,215.39,34.92864907]
[1757328968557,39.26,215.47,215.43,8.92864907]
[1757328968558,0.1,215.47,215.43,8.92864907]
[1757328968870,0.1,215.47,215.44,0.71]
[1757328969660,9.02864907,215.47,215.41,9.63864907]
[1757328970262,0.1,215.47,215.43,4.64187903]
[1757328970451,0.1,215.47,215.42,8.92864907]
[1757328970663,0.1,215.47,215.41,34.92864907]
[1757328970862,0.1,215.47,215.42,0.71]
[1757328971062,0.1,215.47,215.43,0.71]
[1757328971765,0.1,215.47,215.44,9.63864907]
[1757328972073,0.1,215.47,215.46,8.92864907]
[1757328972373,0.1,215.47,215.46,13.56988178]
[1757328972576,0.06,215.52,215.46,13.56988178]
[1757328972577,0.06,215.52,215.49,26.0]
[1757328972782,0.06,215.58,215.55,26.0]
[1757328972983,0.06,215.58,215.55,34.92864907]
[1757328973460,0.06,215.58,215.55,35.56864907]
[1757328974383,0.06,215.58,215.55,32.6867374]
[1757328974552,6.1067374,215.58,215.55,26.0]
[1757328975474,6.1067374,215.58,215.53,26.0]
[1757328975475,6.1067374,215.56,215.53,26.0]
[1757328975776,0.06,215.56,215.54,26.0]
[1757328976580,0.06,215.56,215.53,26.0]
[1757328976762,0.06,215.56,215.53,26.64]
[1757328976957,0.06,215.56,215.54,6.6867374]
[1757328977759,0.06,215.56,215.55,6.6867374]
[1757328977966,0.06,215.56,215.55,0.64]
[1757328978517,0.06,215.58,215.55,11.32603222]
[1757328978671,0.06,215.61,215.57,45.64233141]
[1757328978991,0.06,215.61,215.6,6.0467374]
[1757328979280,0.06,215.61,215.6,39.12]
[1757328979486,0.06,215.61,215.59,6.0467374]
[1757328979665,0.06,215.61,215.58,26.58]
[1757328979859,0.06,215.61,215.55,4.63929482]
[1757328979860,0.06,215.61,215.6,32.0467374]
[1757328980080,0.06,215.61,215.6,26.0]
[1757328981181,0.06,215.61,215.57,26.0]
[1757328981182,6.1067374,215.61,215.57,26.0]
[1757328981382,6.0467374,215.6,215.57,26.0]
[1757328981681,6.7267374,215.59,215.47,11.60219455]
[1757328981874,6.0467374,215.58,215.51,6.0467374]
[1757328982696,6.0467374,215.57,215.49,0.58]
[1757328982866,6.0467374,215.56,215.5,6.0467374]
[1757328983784,6.0467374,215.54,215.48,6.6267374]
[1757328984082,6.0467374,215.54,215.51,26.0]
[1757328984292,6.0467374,215.54,215.48,11.26746798]
[1757328984293,6.0467374,215.55,215.52,26.0]
[1757328985084,6.0467374,215.56,215.51,26.0]
[1757328985387,6.7267374,215.56,215.51,26.0]
[1757328986472,6.7867374,215.56,215.51,26.0]
[1757328987168,11.42587803,215.56,215.51,26.0]
[1757328987493,6.0467374,215.52,215.5,0.03]
[1757328987672,6.0467374,215.51,215.5,0.03]
[1757328987876,0.68,215.51,215.5,0.03]
[1757328988077,0.68,215.51,215.47,0.03]
[1757328988078,6.7267374,215.51,215.47,0.03]
[1757328988277,6.0467374,215.48,215.47,0.03]
[1757328988682,6.7267374,215.48,215.47,0.03]
[1757328989076,11.36753933,215.48,215.47,0.03]
[1757328989665,24.96313334,215.48,215.47,0.03]
[1757328990968,24.96313334,215.48,215.45,0.03]
[1757328991171,24.28356412,215.46,215.45,0.03]
[1757328991598,13.59559401,215.45,215.32,5.25424503]
[1757328991777,6.0467374,215.37,215.32,31.25424503]
[1757328992186,6.0467374,215.37,215.33,0.61]
[1757328992386,6.0467374,215.37,215.32,4.64424503]
[1757328992872,6.0467374,215.37,215.34,26.0]
[1757328993394,0.68,215.4,215.34,30.64375878]
[1757328993692,6.0467374,215.38,215.34,4.64375878]
[1757328993887,6.0467374,215.43,215.37,6.0467374]
[1757328994086,26.0,215.53,215.42,6.0467374]
[1757328994087,0.68,215.5,215.42,6.0467374]
[1757328994278,6.0467374,215.49,215.43,6.0467374]
[1757328994678,0.68,215.5,215.44,6.0467374]
[1757328994881,6.7267374,215.53,215.47,6.0467374]
[1757328995194,6.0467374,215.53,215.47,6.0467374]
[1757328995404,0.74,215.56,215.48,36.68753933]
[1757328995577,0.74,215.56,215.5,6.0467374]
[1757328995896,6.1067374,215.56,215.5,6.0467374]
[1757328996272,6.1067374,215.56,215.48,31.25080193]
[1757328996474,6.1067374,215.56,215.5,6.0467374]
[1757328996671,0.06,215.56,215.5,6.0467374]
[1757328996875,6.1067374,215.56,215.5,6.0467374]
[1757328997082,6.1067374,215.56,215.48,31.25080193]
[1757328997286,6.1067374,215.56,215.5,6.0467374]
[1757328997494,6.1067374,215.56,215.5,10.68697977]
[1757328998194,6.1067374,215.56,215.5,4.64024237]
[1757328998697,0.06,215.56,215.5,4.64024237]
[1757328999079,0.06,215.56,215.51,32.0467374]
[1757328999286,6.0467374,215.55,215.5,4.64024237]
[1757328999484,6.0467374,215.55,215.5,5.25024237]
[1757328999795,6.1067374,215.56,215.5,11.29697977]
[1757328999996,0.06,215.56,215.54,6.0467374]
[1757329000295,0.06,215.56,215.55,32.0467374]
[1757329000878,0.06,215.56,215.55,32.6567374]
[1757329001601,0.06,215.56,215.55,37.29603222]
[1757329002398,0.06,215.56,215.55,31.24929482]
[1757329002609,0.06,215.56,215.5,11.60092807]
[1757329002901,0.06,215.56,215.55,6.0467374]
[1757329003308,0.06,215.56,215.55,6.6567374]
[1757329003599,0.06,215.59,215.58,26.0]
[1757329003792,0.06,215.59,215.58,32.0467374]
[1757329004377,0.06,215.56,215.55,30.63929482]
[1757329004582,0.06,215.56,215.55,37.29603222]
[1757329004998,0.06,215.56,215.5,0.61]
[1757329005206,0.06,215.56,215.55,26.0]
[1757329005700,0.06,215.56,215.55,4.63929482]
[1757329005917,0.06,215.56,215.55,10.68603222]
[1757329006708,0.06,215.56,215.55,6.0467374]
[1757329006919,0.06,215.56,215.54,6.0467374]
[1757329007093,0.06,215.56,215.53,32.0467374]
[1757329007295,0.68,215.55,215.46,0.61]
[1757329007489,6.7267374,215.55,215.49,6.0467374]
[1757329007891,6.7267374,215.55,215.52,26.0]
[1757329008994,0.68,215.55,215.51,4.64012903]
[1757329009387,0.68,215.54,215.51,4.64012903]
[1757329009585,0.06,215.56,215.51,10.68686643]
[1757329009810,0.06,215.56,215.54,4.63951006]
[1757329010105,0.06,215.56,215.55,26.0]
[1757329010291,0.06,215.56,215.48,0.61]
[1757329010292,0.06,215.56,215.52,6.0467374]
[1757329010495,0.74,215.56,215.49,30.64058657]
[1757329010684,6.7867374,215.56,215.51,6.0467374]
[1757329010884,0.68,215.55,215.51,26.0]
[1757329011085,6.7267374,215.55,215.49,10.68732397]
[1757329011314,0.68,215.55,215.5,34.60567349]
[1757329011506,0.68,215.55,215.5,32.0467374]
[1757329012085,6.1067374,215.56,215.5,26.0]
[1757329012086,0.68,215.54,215.5,26.0]
[1757329012285,0.06,215.56,215.51,6.0467374]
[1757329012507,0.06,215.56,215.55,6.0467374]
[1757329012710,0.06,215.56,215.55,8.60405114]
[1757329013021,0.06,215.56,215.55,9.21405114]
[1757329013229,0.06,215.56,215.55,8.60405114]
[1757329013413,0.06,215.56,215.55,2.55731374]
[1757329013595,0.06,215.56,215.55,8.60405114]
[1757329013797,0.06,215.56,215.55,2.55731374]
[1757329014015,0.06,215.56,215.55,28.55731374]
[1757329014211,0.06,215.56,215.55,26.0]
[1757329015203,0.06,215.56,215.55,28.55947262]
[1757329016394,0.06,215.56,215.55,26.0]
[1757329017405,0.06,215.56,215.55,30.63929482]
[1757329017615,0.74,215.56,215.55,2.55978323]
[1757329017826,0.74,215.56,215.54,26.0]
[1757329018096,0.74,215.56,215.5,36.68710862]
[1757329018097,0.68,215.55,215.5,36.68710862]
[1757329018325,0.68,215.55,215.51,2.56078229]
[1757329018628,6.7267374,215.55,215.52,2.56078229]
[1757329018823,6.7267374,215.55,215.52,26.0]
[1757329019020,0.06,215.56,215.54,6.0467374]
[1757329019217,0.06,215.56,215.55,8.60769879]
[1757329019519,0.06,215.56,215.55,13.24699361]
[1757329019814,0.06,215.56,215.55,7.81025621]
[1757329020127,0.06,215.56,215.55,13.85699361]
[1757329020618,0.06,215.56,215.55,18.25883767]
[1757329020619,1e-08,215.56,215.55,18.25883767]
[1757329020821,1e-08,215.56,215.55,11.74817079]
[1757329021126,1e-08,215.56,215.55,17.79490819]
[1757329023114,1e-08,215.56,215.55,56.83490819]
[1757329023507,1e-08,215.56,215.55,46.24025621]
[1757329023719,1e-08,215.56,215.55,13.24699361]
[1757329023925,1e-08,215.56,215.55,2.56096139]
[1757329024142,1e-08,215.56,215.55,8.60769879]
[1757329024446,1e-08,215.56,215.55,8.60558685]
[1757329024738,1e-08,215.56,215.55,39.24488167]
[1757329024923,1e-08,215.56,215.55,36.68603222]
[1757329025115,1e-08,215.56,215.55,8.60568086]
[1757329025315,1e-08,215.56,215.55,13.24467002]
[1757329026236,1e-08,215.56,215.55,10.68603222]
[1757329026544,1e-08,215.56,215.55,4.63929482]
[1757329026706,1e-08,215.56,215.55,10.68603222]
[1757329027126,1e-08,215.56,215.55,4.63929482]
[1757329027311,1e-08,215.56,215.55,13.85310722]
[1757329027511,1e-08,215.56,215.55,13.24310722]
[1757329027815,1e-08,215.56,215.55,10.68603222]
[1757329028218,1e-08,215.56,215.55,6.0467374]
[1757329028532,0.68000001,215.56,215.52,45.0967374]
[1757329028737,0.68000001,215.56,215.52,49.73664486]
[1757329028923,0.68000001,215.56,215.55,26.0]
[1757329029929,1e-08,215.56,215.55,26.0]
[1757329030716,1e-08,215.56,215.55,36.68603222]
[1757329030934,1e-08,215.56,215.55,30.63929482]
[1757329031147,1e-08,215.56,215.55,36.68603222]
[1757329032519,1e-08,215.56,215.55,26.0]
[1757329032925,1e-08,215.56,215.55,6.0467374]
[1757329033114,1e-08,215.56,215.54,26.0]
[1757329033115,0.68000001,215.56,215.54,26.0]
[1757329033431,0.68000001,215.56,215.52,0.03]
[1757329033432,0.68,215.55,215.52,0.03]
[1757329033937,0.68,215.54,215.52,0.03]
[1757329034641,1e-08,215.56,215.55,26.0]
[1757329034830,1e-08,215.56,215.55,39.55113596]
[1757329035517,1e-08,215.56,215.55,34.91184114]
[1757329036417,1e-08,215.56,215.53,43.63972532]
[1757329036418,0.68000001,215.56,215.52,0.03]
[1757329036629,8.91184114,215.54,215.52,0.03]
[1757329036831,8.91184114,215.53,215.5,0.03]
[1757329037031,0.68,215.52,215.5,0.03]
[1757329037518,0.68,215.51,215.5,0.03]
[1757329038428,0.68,215.51,215.5,26.03]
[1757329038624,8.91184114,215.54,215.51,26.0]
[1757329038938,0.68,215.53,215.51,26.0]
[1757329039120,9.59184114,215.52,215.5,0.03]
[1757329039325,8.91184114,215.51,215.5,0.03]
[1757329039737,9.59184114,215.51,215.45,2.60488767]
[1757329039939,8.91184114,215.48,215.46,2.5748139]
[1757329040136,8.91184114,215.47,215.45,0.03]
[1757329040534,0.68,215.46,215.45,0.03]
[1757329040731,0.68,215.46,215.45,2.6051618]
[1757329041042,14.23307385,215.46,215.45,0.03]
[1757329041220,14.23307385,215.46,215.42,0.03]
[1757329041835,8.91184114,215.43,215.42,0.03]
[1757329042230,9.59184114,215.43,215.42,0.03]
[1757329042845,27.82931418,215.43,215.42,0.03]
[1757329043632,66.82931418,215.43,215.42,0.03]
[1757329045732,80.77534305,215.43,215.42,0.03]
[1757329047532,13.59559401,215.42,215.3,26.03]
[1757329047735,13.59559401,215.41,215.3,26.03]
[1757329047932,70.56581928,215.41,215.3,26.03]
[1757329048441,75.20812929,215.41,215.31,4.64446611]
[1757329048647,70.56581928,215.41,215.32,8.91184114]
[1757329048953,70.56581928,215.41,215.33,8.91184114]
[1757329049153,31.56581928,215.41,215.32,26.0]
[1757329049349,70.56581928,215.41,215.32,26.0]
[1757329049735,75.20812929,215.41,215.3,5.34468096]
[1757329049935,75.20812929,215.41,215.31,26.0]
[1757329050958,75.20812929,215.41,215.31,4.64429249]
[1757329051968,75.20812929,215.41,215.3,5.34468183]
[1757329053449,75.20812929,215.41,215.3,0.7]
[1757329053652,75.20812929,215.41,215.3,5.34463364]
[1757329053653,27.29628815,215.41,215.3,5.34463364]
[1757329053861,75.20812929,215.41,215.31,0.67]